bitfinex-derivatives/quotes_SOLF0:USTF0_20250623
["timestamp","ask_amount","ask_price","bid_price","bid_amount"]
[1750711238318,49.8393,141.19,141.11,11.23276509]
[1750711239024,7.0795,141.18,141.11,11.23276509]
[1750711239225,49.8393,141.19,141.11,11.23276509]
[1750711239526,56.9273,141.19,141.13,7.0816]
[1750711239722,11.23276509,141.18,141.11,11.23276509]
[1750711239920,11.23276509,141.16,141.09,11.23276509]
[1750711240123,7.0816,141.14,141.1,7.083]
[1750711240524,7.0816,141.14,141.09,11.23276509]
[1750711241027,7.0818,141.13,141.09,11.23276509]
[1750711241726,7.0818,141.13,141.1,7.083]
[1750711241928,11.23276509,141.14,141.07,45.18]
[1750711242229,11.23276509,141.14,141.06,2.3121]
[1750711242529,11.23276509,141.17,141.09,11.23276509]
[1750711242727,45.2,141.17,141.09,11.23276509]
[1750711243431,7.0807,141.16,141.09,11.23276509]
[1750711243931,7.0809,141.15,141.12,7.082]
[1750711244432,7.0814,141.14,141.11,7.0826]
[1750711244629,56.43276509,141.17,141.06,2.3121]
[1750711244926,56.43276509,141.17,141.08,11.23276509]
[1750711245532,56.43276509,141.17,141.1,7.083]
[1750711246130,7.081,141.15,141.12,7.0822]
[1750711246337,7.081,141.15,141.1,11.23276509]
[1750711246925,7.081,141.15,141.12,7.082]
[1750711247533,56.43276509,141.17,141.11,7.0827]
[1750711248125,7.0818,141.14,141.11,7.0827]
[1750711248330,56.43276509,141.17,141.07,11.23276509]
[1750711248835,11.23276509,141.15,141.08,7.084]
[1750711249334,7.0826,141.12,141.09,7.0835]
[1750711249535,45.2,141.16,141.1,11.23865097]
[1750711249736,7.0811,141.15,141.12,7.082]
[1750711251735,7.0811,141.15,141.13,7.0817]
[1750711252226,52.2804,141.16,141.1,11.23548717]
[1750711253041,52.2804,141.16,141.13,7.0815]
[1750711253242,7.0808,141.15,141.13,7.0815]
[1750711253445,45.2,141.16,141.13,7.0815]
[1750711253939,45.2,141.16,141.1,11.23548717]
[1750711254241,52.2803,141.19,141.12,11.23548717]
[1750711254540,45.2,141.22,141.16,11.23548717]
[1750711254839,7.0781,141.21,141.16,11.23548717]
[1750711255238,45.2,141.22,141.16,11.23548717]
[1750711255638,45.2,141.22,141.2,7.0782]
[1750711255844,45.2,141.25,141.18,11.23548717]
[1750711256237,45.2,141.25,141.21,7.0775]
[1750711256441,45.2,141.25,141.18,11.23548717]
[1750711256442,7.0765,141.24,141.18,11.23548717]
[1750711256642,45.2,141.25,141.18,11.23548717]
[1750711256836,45.2,141.25,141.21,7.0776]
[1750711257035,45.2,141.25,141.18,11.23548717]
[1750711257941,52.276,141.25,141.22,7.077]
[1750711258246,52.276,141.25,141.18,11.23548717]
[1750711258247,2.2185,141.26,141.2,11.23548717]
[1750711258444,2.2185,141.26,141.18,45.18]
[1750711258638,2.2185,141.26,141.2,11.23548717]
[1750711259033,9.2942,141.26,141.2,11.23548717]
[1750711259240,2.2185,141.26,141.2,11.23548717]
[1750711259441,2.2185,141.26,141.18,56.41548717]
[1750711260043,7.076,141.25,141.22,7.077]
[1750711260241,7.076,141.25,141.18,56.41548717]
[1750711260448,2.2185,141.26,141.2,11.23548717]
[1750711260746,7.075,141.27,141.24,7.076]
[1750711261144,7.075,141.27,141.25,7.0757]
[1750711261351,52.2544,141.28,141.25,7.0757]
[1750711261541,45.18,141.28,141.22,11.23548717]
[1750711261738,616.3193,141.3,141.26,7.0749]
[1750711261940,616.3193,141.3,141.24,11.23548717]
[1750711262144,616.3193,141.3,141.26,7.0752]
[1750711262337,616.3193,141.3,141.24,11.23548717]
[1750711263147,616.3193,141.3,141.27,7.0747]
[1750711263348,47.5292,141.31,141.24,11.23548717]
[1750711263643,47.5292,141.31,141.29,7.0736]
[1750711263845,45.18,141.31,141.26,11.23548717]
[1750711265248,45.18,141.31,141.22,45.18]
[1750711265451,45.18,141.31,141.25,11.23548717]
[1750711267141,7.0734,141.3,141.27,7.0745]
[1750711267449,45.18,141.31,141.25,11.23548717]
[1750711267846,52.253,141.31,141.28,7.074]
[1750711268051,45.18,141.31,141.25,11.23548717]
[1750711268448,52.2529,141.31,141.28,7.074]
[1750711269859,45.18,141.31,141.23,11.23548717]
[1750711270354,7.0746,141.28,141.23,11.23548717]
[1750711270850,7.0746,141.28,141.25,7.0758]
[1750711271055,11.23548717,141.3,141.23,11.23548717]
[1750711271552,45.18,141.31,141.23,11.23548717]
[1750711271758,2.3884,141.34,141.25,11.21229195]
[1750711271951,7.0731,141.31,141.28,7.0738]
[1750711272252,2.3884,141.34,141.27,11.21229195]
[1750711272653,2.3884,141.34,141.27,11.20818764]
[1750711273155,11.20818764,141.33,141.2,686.80318764]
[1750711273454,11.20818764,141.29,141.2,2.335]
[1750711273654,55.78818764,141.29,141.2,2.335]
[1750711273853,7.0755,141.26,141.23,7.0765]
[1750711274046,55.78818764,141.29,141.21,11.20818764]
[1750711274247,44.58,141.29,141.23,11.20818764]
[1750711275056,7.0745,141.28,141.23,11.20818764]
[1750711275553,7.0745,141.28,141.25,7.0755]
[1750711275751,7.0745,141.28,141.23,11.20818764]
[1750711275951,51.654,141.29,141.23,11.20818764]
[1750711276256,44.58,141.29,141.23,11.20818764]
[1750711276453,7.0743,141.28,141.23,11.20818764]
[1750711276960,7.0743,141.28,141.26,7.0753]
[1750711277264,7.0749,141.27,141.24,7.0758]
[1750711277559,2.2364,141.33,141.26,11.21603358]
[1750711277560,46.8164,141.33,141.26,11.21603358]
[1750711277859,7.0725,141.32,141.29,7.0735]
[1750711279163,2.3884,141.34,141.28,11.21603358]
[1750711279463,2.3415,141.35,141.27,11.20600538]
[1750711279651,7.072,141.33,141.3,7.0729]
[1750711280050,4.7403,141.35,141.29,7.0735]
[1750711280556,11.20600538,141.34,141.25,11.20600538]
[1750711280761,7.0726,141.32,141.25,11.20600538]
[1750711281153,7.0735,141.3,141.27,7.0745]
[1750711281555,7.0735,141.3,141.24,55.78600538]
[1750711281756,7.0735,141.3,141.28,7.074]
[1750711282459,7.073,141.31,141.29,7.0737]
[1750711282658,44.58,141.32,141.28,11.20600538]
[1750711282959,44.58,141.32,141.31,7.0728]
[1750711283460,49.3203,141.35,141.31,7.0728]
[1750711283763,56.4083,141.35,141.31,7.0728]
[1750711284664,7.0716,141.34,141.31,7.0728]
[1750711285363,7.0716,141.34,141.32,7.0722]
[1750711287363,7.0716,141.34,141.31,7.0726]
[1750711287668,56.3912,141.35,141.27,11.20600538]
[1750711288057,56.3912,141.35,141.32,7.0719]
[1750711288366,7.0713,141.34,141.27,11.20600538]
[1750711288561,49.3203,141.35,141.24,58.7321]
[1750711288866,56.3912,141.35,141.29,11.20600538]
[1750711289061,56.3912,141.35,141.32,7.072]
[1750711289262,2.245,141.36,141.29,11.20600538]
[1750711289767,2.245,141.36,141.33,7.0714]
[1750711289972,9.3153,141.36,141.33,7.0714]
[1750711290660,2.245,141.36,141.32,7.0722]
[1750711290969,2.245,141.36,141.29,11.20600538]
[1750711291359,7.0711,141.35,141.29,11.20600538]
[1750711291556,2.245,141.36,141.31,11.20600538]
[1750711291763,44.56,141.37,141.31,11.20600538]
[1750711292766,7.0706,141.36,141.31,11.20600538]
[1750711293070,44.56,141.37,141.31,11.20600538]
[1750711293266,44.56,141.37,141.33,11.20600538]
[1750711293467,44.56,141.37,141.29,6.9042]
[1750711293766,44.56,141.37,141.3,11.20600538]
[1750711294263,7.0706,141.36,141.32,7.0723]
[1750711294468,44.56,141.37,141.32,7.0723]
[1750711294972,7.0705,141.36,141.32,7.0723]
[1750711295173,44.56,141.37,141.32,7.0723]
[1750711295366,44.56,141.37,141.29,13.56310538]
[1750711295566,44.56,141.37,141.31,11.20600538]
[1750711295873,4.7446,141.39,141.34,7.0711]
[1750711296281,7.0696,141.38,141.34,7.0711]
[1750711296570,7.0696,141.38,141.33,11.20600538]
[1750711296571,7.0696,141.38,141.35,7.0708]
[1750711296767,11.8136,141.39,141.33,11.20600538]
[1750711296962,4.7446,141.39,141.35,7.0705]
[1750711297172,44.0,141.43,141.37,11.20600538]
[1750711297366,44.0,141.43,141.42,7.0673]
[1750711297367,5.23637847,141.43,141.42,7.0673]
[1750711297671,44.0,141.48,141.41,11.20600538]
[1750711297873,44.0,141.48,141.39,44.0]
[1750711297874,7.0672,141.43,141.39,44.0]
[1750711298071,11.20600538,141.46,141.39,44.0]
[1750711298265,44.0,141.48,141.39,44.0]
[1750711298468,44.0,141.48,141.4,11.19083132]
[1750711298668,5.23708237,141.47,141.4,11.19083132]
[1750711298975,7.0655,141.46,141.42,7.0671]
[1750711299169,5.23001747,141.47,141.42,7.0671]
[1750711299471,5.23001747,141.47,141.41,7.0676]
[1750711299770,55.18910403,141.48,141.41,7.0676]
[1750711299970,7.0666,141.44,141.41,7.0676]
[1750711300175,5.22941793,141.47,141.39,44.0]
[1750711300368,5.22810015,141.5,141.43,11.18743672]
[1750711300559,2.2754,141.52,141.43,11.18743672]
[1750711300761,16.41546493,141.51,141.43,11.18743672]
[1750711300959,7.0648,141.47,141.4,73.18545571]
[1750711301574,51.0645,141.48,141.42,11.18545571]
[1750711301767,44.0,141.48,141.42,11.18545571]
[1750711302568,44.0,141.48,141.44,11.18545571]
[1750711302967,2.3939,141.49,141.46,7.065]
[1750711303168,7.0635,141.5,141.44,11.18545571]
[1750711303772,5.23518586,141.55,141.48,11.18545571]
[1750711303972,43.98,141.57,141.51,11.18545571]
[1750711304172,55.16545571,141.61,141.48,43.98]
[1750711304372,11.18545571,141.57,141.48,55.16545571]
[1750711304677,11.18545571,141.53,141.44,11.18545571]
[1750711304876,48.5777,141.52,141.44,11.18545571]
[1750711305097,48.5777,141.52,141.46,11.18545571]
[1750711305277,46.332,141.52,141.46,11.18545571]
[1750711306167,2.2381,141.55,141.48,11.18545571]
[1750711306382,2.421,141.56,141.5,11.18545571]
[1750711306569,2.421,141.56,141.52,11.18545571]
[1750711306771,2.421,141.56,141.54,7.0613]
[1750711306970,43.98,141.57,141.52,11.18545571]
[1750711307170,2.2588,141.59,141.49,43.98]
[1750711307377,2.2588,141.59,141.53,11.18545571]
[1750711307979,2.2588,141.59,141.49,43.98]
[1750711308281,2.2588,141.59,141.53,11.18545571]
[1750711308470,7.0594,141.58,141.53,11.18545571]
[1750711308871,7.0594,141.58,141.54,7.061]
[1750711309071,9.3178,141.59,141.53,11.18545571]
[1750711309472,9.3178,141.59,141.55,7.0604]
[1750711309664,9.3178,141.59,141.55,11.18545571]
[1750711309863,2.2588,141.59,141.49,43.98]
[1750711310076,2.2588,141.59,141.56,11.18545571]
[1750711310479,53.4414,141.6,141.56,11.18545571]
[1750711310779,46.3827,141.6,141.56,11.18545571]
[1750711311073,2.2381,141.61,141.56,11.18545571]
[1750711311285,43.96,141.62,141.53,43.96]
[1750711311581,43.96,141.62,141.56,11.18545571]
[1750711311766,43.96,141.62,141.54,11.18545571]
[1750711311970,2.338,141.61,141.53,55.14545571]
[1750711312179,2.338,141.61,141.53,11.18545571]
[1750711313082,2.338,141.61,141.55,11.18545571]
[1750711313666,7.0585,141.6,141.57,7.0595]
[1750711314177,2.338,141.61,141.57,11.18545571]
[1750711314383,2.3873,141.63,141.59,11.18545571]
[1750711315277,2.3873,141.63,141.6,7.0582]
[1750711315474,9.4441,141.63,141.6,7.0582]
[1750711315681,2.3873,141.63,141.59,11.18545571]
[1750711315880,2.3873,141.63,141.59,7.0585]
[1750711316080,7.0576,141.62,141.59,7.0585]
[1750711316984,610.56,141.64,141.61,7.0577]
[1750711317382,43.94,141.65,141.61,11.18545571]
[1750711317580,43.94,141.68,141.63,11.18545571]
[1750711317780,43.94,141.68,141.65,11.18545571]
[1750711318182,654.08,141.71,141.65,11.18545571]
[1750711318379,625.94415571,141.71,141.62,11.18545571]
[1750711318585,7.0557,141.66,141.62,7.057]
[1750711319275,55.12545571,141.7,141.61,11.18545571]
[1750711319481,11.18545571,141.68,141.61,11.18545571]
[1750711319781,7.0565,141.64,141.6,13.44395571]
[1750711319974,11.18545571,141.69,141.6,13.44395571]
[1750711320381,7.0566,141.64,141.6,13.44395571]
[1750711320576,11.18545571,141.61,141.5,610.38]
[1750711320784,7.0591,141.59,141.52,11.18545571]
[1750711320975,7.0591,141.59,141.55,7.0605]
[1750711321184,48.6338,141.63,141.58,11.18545571]
[1750711321401,46.2749,141.63,141.58,11.18545571]
[1750711321581,53.332,141.63,141.58,11.18545571]
[1750711321786,46.2749,141.63,141.58,11.18545571]
[1750711321983,43.92,141.63,141.6,11.18545571]
[1750711322388,43.92,141.66,141.62,11.18545571]
[1750711322587,43.92,141.67,141.6,11.18545571]
[1750711322789,11.18545571,141.66,141.57,11.18545571]
[1750711322996,11.18545571,141.64,141.55,161.46545571]
[1750711323293,43.92,141.63,141.55,161.46545571]
[1750711323498,46.1516,141.63,141.55,150.28]
[1750711323797,15.70865571,141.62,141.55,7.0605]
[1750711323988,15.70865571,141.62,141.54,11.18545571]
[1750711324181,15.70865571,141.62,141.56,7.0601]
[1750711324494,15.70865571,141.62,141.54,11.18545571]
[1750711324797,7.0587,141.6,141.56,7.0601]
[1750711324987,7.0587,141.6,141.54,11.18545571]
[1750711325193,11.5807,141.62,141.59,7.0588]
[1750711325385,4.5232,141.62,141.56,11.18545571]
[1750711326092,2.2316,141.63,141.56,11.18545571]
[1750711326288,2.2316,141.63,141.51,4.6088]
[1750711326289,2.2316,141.63,141.54,43.46]
[1750711326487,2.2316,141.63,141.57,11.18545571]
[1750711326488,7.0577,141.62,141.57,11.18545571]
[1750711326794,43.46,141.61,141.55,11.18545571]
[1750711326990,50.5181,141.61,141.58,7.0591]
[1750711327185,43.46,141.61,141.57,11.18545571]
[1750711327396,2.2316,141.63,141.57,11.18545571]
[1750711327696,2.2316,141.63,141.54,54.64545571]
[1750711328287,7.0587,141.6,141.54,54.64545571]
[1750711328997,7.0587,141.6,141.57,7.0595]
[1750711329894,7.0587,141.6,141.54,43.46]
[1750711329895,7.0589,141.59,141.56,7.0602]
[1750711330483,7.0593,141.58,141.55,7.0606]
[1750711330897,43.46,141.6,141.52,11.18545571]
[1750711331101,7.0591,141.59,141.52,11.18545571]
[1750711331797,50.5185,141.6,141.52,11.18545571]
[1750711331998,43.46,141.6,141.56,11.18545571]
[1750711332594,43.46,141.6,141.55,11.18545571]
[1750711333694,50.5186,141.6,141.57,7.0598]
[1750711334195,43.46,141.6,141.54,11.18545571]
[1750711334587,7.059,141.59,141.54,11.18545571]
[1750711334787,7.059,141.59,141.56,7.06]
[1750711335095,43.46,141.6,141.54,11.18545571]
[1750711335297,43.46,141.6,141.56,7.0601]
[1750711335298,7.0589,141.59,141.56,7.0601]
[1750711335704,43.46,141.6,141.54,11.18545571]
[1750711335899,7.0589,141.59,141.54,11.18545571]
[1750711336408,7.0589,141.59,141.56,7.0601]
[1750711336603,43.46,141.6,141.51,48.0688]
[1750711336793,2.296,141.59,141.51,11.18545571]
[1750711336994,4.547,141.59,141.51,11.18545571]
[1750711337193,4.547,141.59,141.53,11.18545571]
[1750711337388,4.547,141.59,141.55,7.0605]
[1750711337594,7.0596,141.58,141.55,7.0605]
[1750711337995,4.547,141.59,141.54,7.0611]
[1750711338205,4.547,141.59,141.53,11.18545571]
[1750711338904,7.0598,141.57,141.54,7.061]
[1750711339404,4.547,141.59,141.51,11.18545571]
[1750711339603,11.18545571,141.58,141.5,11.18545571]
[1750711340110,7.0617,141.54,141.51,7.0626]
[1750711340397,43.46,141.55,141.51,7.0626]
[1750711340604,7.0621,141.53,141.5,7.0631]
[1750711340800,43.46,141.55,141.5,7.0631]
[1750711341106,7.0627,141.52,141.49,7.0637]
[1750711341408,43.46,141.55,141.46,11.18545571]
[1750711341911,43.46,141.55,141.48,11.18545571]
[1750711342496,54.64545571,141.55,141.46,11.18545571]
[1750711342691,7.0626,141.52,141.49,7.0638]
[1750711342905,7.0626,141.52,141.46,11.18545571]
[1750711343100,54.64545571,141.55,141.46,11.18545571]
[1750711343707,11.18545571,141.51,141.34,12.8693034]
[1750711343902,45.7009,141.5,141.41,13.61225571]
[1750711344206,50.3657,141.5,141.41,13.61225571]
[1750711344808,7.0649,141.47,141.44,7.0659]
[1750711345603,7.0654,141.46,141.44,7.0659]
[1750711345909,7.0654,141.46,141.39,204.44545571]
[1750711345910,43.48,141.46,141.39,204.44545571]
[1750711346101,43.48,141.46,141.39,54.66545571]
[1750711346406,11.18545571,141.45,141.37,2.4099]
[1750711346708,7.0677,141.42,141.36,54.66545571]
[1750711346905,11.18545571,141.45,141.36,54.66545571]
[1750711347106,11.18545571,141.43,141.34,11.18545571]
[1750711347313,11.18545571,141.41,141.32,13.45665571]
[1750711347904,11.18545571,141.41,141.32,2.2712]
[1750711348100,11.18545571,141.39,141.31,11.18545571]
[1750711348307,7.0721,141.33,141.3,97.23035358]
[1750711348506,54.66545571,141.35,141.27,43.48]
[1750711348807,43.48,141.34,141.26,18.09075571]
[1750711349003,43.48,141.34,141.29,7.0737]
[1750711349413,7.0728,141.31,141.28,7.0741]
[1750711349911,11.18545571,141.33,141.24,54.66545571]
[1750711350212,11.18545571,141.33,141.22,152.0009]
[1750711350213,11.18545571,141.31,141.22,15.79825571]
[1750711350413,43.48,141.3,141.22,15.79825571]
[1750711350613,43.48,141.33,141.26,11.18545571]
[1750711350910,43.5,141.37,141.3,11.18545571]
[1750711351118,43.5,141.38,141.36,7.0699]
[1750711351313,7.0684,141.4,141.34,11.18545571]
[1750711351314,43.5,141.4,141.34,11.18545571]
[1750711351707,50.5685,141.4,141.36,7.0703]
[1750711351904,43.5,141.4,141.34,11.18545571]
[1750711352414,43.5,141.4,141.32,11.18545571]
[1750711352915,43.5,141.4,141.3,193.2]
[1750711352916,11.18545571,141.39,141.3,204.38545571]
[1750711353212,7.0701,141.37,141.31,7.0723]
[1750711353416,43.52,141.36,141.31,7.0723]
[1750711353915,7.0716,141.34,141.3,167.95865571]
[1750711354115,43.52,141.36,141.3,160.88545571]
[1750711354511,7.0716,141.34,141.3,160.88545571]
[1750711356312,7.071,141.35,141.31,7.0724]
[1750711357408,50.5905,141.36,141.3,160.88545571]
[1750711357815,50.5905,141.36,141.32,7.072]
[1750711358119,7.0709,141.35,141.32,7.072]
[1750711358716,7.0709,141.35,141.31,7.0726]
[1750711359123,43.52,141.36,141.3,167.95855571]
[1750711359422,43.52,141.36,141.3,160.88545571]
[1750711359629,7.0716,141.34,141.31,7.0727]
[1750711359918,43.52,141.36,141.31,7.0727]
[1750711360220,43.52,141.36,141.3,160.88545571]
[1750711360717,43.1,141.39,141.34,11.18545571]
[1750711360920,43.1,141.39,141.36,11.18545571]
[1750711361119,4.586,141.41,141.36,11.18545571]
[1750711361422,653.54,141.42,141.36,11.18545571]
[1750711361817,653.54,141.42,141.31,43.1]
[1750711362122,653.54,141.42,141.35,11.18545571]
[1750711362320,7.0683,141.4,141.36,7.0702]
[1750711362520,664.72545571,141.42,141.34,11.18545571]
[1750711362725,667.15275571,141.42,141.34,11.18545571]
[1750711363526,7.0692,141.39,141.36,7.0703]
[1750711363727,667.15275571,141.42,141.34,11.18545571]
[1750711364024,655.9673,141.42,141.34,11.18545571]
[1750711364325,667.15275571,141.42,141.34,11.18545571]
[1750711364523,7.0691,141.39,141.36,7.0702]
[1750711364724,655.9673,141.42,141.36,11.18545571]
[1750711365422,7.0686,141.4,141.37,7.0695]
[1750711366317,43.1,141.42,141.38,11.18545571]
[1750711366516,43.1,141.44,141.38,11.18545571]
[1750711366827,43.1,141.44,141.35,43.1]
[1750711366828,7.0682,141.41,141.36,11.18545571]
[1750711367028,43.1,141.44,141.36,11.18545571]
[1750711367233,45.4846,141.44,141.36,11.18545571]
[1750711367726,7.0683,141.4,141.37,7.0695]
[1750711368428,45.4846,141.44,141.36,11.18545571]
[1750711369127,52.5466,141.44,141.36,11.18545571]
[1750711369623,7.0682,141.41,141.38,7.069]
[1750711371532,7.0674,141.42,141.38,11.18545571]
[1750711372132,45.4846,141.44,141.38,11.18545571]
[1750711372629,45.4846,141.44,141.4,11.18545571]
[1750711372630,43.1,141.44,141.4,11.18545571]
[1750711372933,7.062,141.45,141.39,43.1]
[1750711373121,50.162,141.45,141.38,11.18545571]
[1750711373728,50.162,141.45,141.4,11.18545571]
[1750711373922,199.522,141.45,141.2,21.2338]
[1750711374133,199.522,141.45,141.29,2.2091]
[1750711374134,11.20095224,141.38,141.29,2.2091]
[1750711374626,11.20095224,141.36,141.3,7.073]
[1750711375126,4.7094,141.38,141.29,7.0736]
[1750711375127,7.0721,141.33,141.29,7.0736]
[1750711375524,11.20828497,141.35,141.27,47.7424]
[1750711375722,7.0727,141.32,141.28,7.0741]
[1750711376934,7.0727,141.32,141.29,7.0738]
[1750711377121,61.37028497,141.35,141.27,4.6424]
[1750711377432,13.50708497,141.37,141.3,11.20828497]
[1750711377627,7.0704,141.36,141.3,54.30828497]
[1750711378016,7.0704,141.36,141.32,7.0721]
[1750711379923,7.0711,141.35,141.32,7.0721]
[1750711380130,11.20828497,141.33,141.24,2.3137]
[1750711380330,11.20828497,141.31,141.21,15.71008497]
[1750711380528,11.20828497,141.29,141.23,7.0764]
[1750711381136,11.20828497,141.29,141.21,2.2029]
[1750711381441,2.2466,141.34,141.28,11.20662777]
[1750711381633,2.2466,141.34,141.27,43.12]
[1750711382335,16.05343413,141.37,141.3,7.0731]
[1750711382635,7.0717,141.34,141.3,7.0731]
[1750711382832,7.0717,141.34,141.31,7.0727]
[1750711383329,16.05343413,141.37,141.32,7.0722]
[1750711384431,7.0712,141.35,141.31,7.0727]
[1750711384639,7.0712,141.35,141.27,107.3779]
[1750711385138,7.0716,141.34,141.31,7.0728]
[1750711385328,16.05343413,141.37,141.27,107.3779]
[1750711385523,7.072,141.34,141.27,107.3779]
[1750711385930,4.8474,141.37,141.31,11.20603413]
[1750711386532,42.8,141.42,141.33,11.20603413]
[1750711386840,42.8,141.42,141.35,11.20603413]
[1750711387037,42.8,141.42,141.37,7.0697]
[1750711387739,7.0688,141.4,141.37,7.0697]
[1750711388334,7.0682,141.41,141.38,7.0696]
[1750711390338,42.8,141.42,141.35,54.00603413]
[1750711390339,7.0686,141.4,141.37,7.0698]
[1750711390539,7.0686,141.4,141.35,54.00603413]
[1750711390836,42.8,141.42,141.38,7.0693]
[1750711391730,7.0684,141.41,141.38,7.0693]
[1750711392435,42.8,141.42,141.4,7.0685]
[1750711392639,42.8,141.45,141.39,11.20603413]
[1750711392839,5.62721882,141.44,141.39,11.20603413]
[1750711393041,42.8,141.45,141.39,11.20603413]
[1750711393337,42.8,141.45,141.42,7.0676]
[1750711393637,49.4936,141.48,141.41,11.20603413]
[1750711393940,12.69010697,141.47,141.41,11.20603413]
[1750711394145,5.62480697,141.46,141.41,11.20603413]
[1750711394439,49.4936,141.48,141.43,7.0668]
[1750711394641,5.62414939,141.47,141.43,11.20603413]
[1750711394842,49.4936,141.48,141.43,11.20603413]
[1750711394843,7.066,141.46,141.43,18.27293413]
[1750711395234,49.4936,141.48,141.4,2.2432]
[1750711395435,7.0663,141.45,141.42,7.0676]
[1750711396829,7.0666,141.44,141.42,7.0676]
[1750711397030,49.4936,141.48,141.42,7.0676]
[1750711397238,49.4936,141.48,141.43,7.067]
[1750711397638,7.0659,141.46,141.43,7.067]
[1750711398536,7.0661,141.45,141.42,18.27343413]
[1750711398734,49.4936,141.48,141.39,45.1216]
[1750711398930,49.4936,141.48,141.4,11.20603413]
[1750711399151,7.0658,141.46,141.4,11.20603413]
[1750711399336,49.4936,141.48,141.39,45.1216]
[1750711399641,7.0669,141.44,141.41,18.27383413]
[1750711400042,60.69963413,141.48,141.41,11.20603413]
[1750711400244,60.69963413,141.48,141.4,7.0683]
[1750711400445,60.69963413,141.48,141.36,2.2432]
[1750711400446,11.20603413,141.44,141.36,53.98603413]
[1750711400647,53.98603413,141.44,141.36,53.98603413]
[1750711400938,53.98603413,141.44,141.38,7.0693]
[1750711401443,53.98603413,141.44,141.35,11.20603413]
[1750711401641,18.26803413,141.42,141.33,621.96603413]
[1750711401844,11.20603413,141.4,141.32,42.78]
[1750711402033,53.98603413,141.4,141.34,7.0713]
[1750711402532,42.78,141.4,141.33,11.20603413]
[1750711403532,7.0695,141.39,141.35,7.0707]
[1750711403934,42.78,141.4,141.33,11.20603413]
[1750711404141,42.78,141.43,141.37,11.20603413]
[1750711404346,42.78,141.43,141.35,11.20603413]
[1750711404642,7.0689,141.4,141.37,7.0698]
[1750711404833,7.0689,141.4,141.35,11.20603413]
[1750711404834,42.78,141.43,141.35,11.20603413]
[1750711405235,7.0684,141.41,141.38,7.0695]
[1750711405445,53.98603413,141.43,141.32,42.78]
[1750711405642,11.20603413,141.41,141.35,7.0708]
[1750711405833,11.20603413,141.41,141.33,11.20603413]
[1750711406344,7.0703,141.37,141.34,7.0713]
[1750711406932,7.0706,141.36,141.34,7.0713]
[1750711407238,7.0706,141.36,141.33,7.0719]
[1750711407439,53.98603413,141.39,141.33,7.0719]
[1750711407639,2.265,141.38,141.32,7.0724]
[1750711407850,6.9692,141.38,141.32,7.0724]
[1750711408045,7.0716,141.34,141.29,54.00603413]
[1750711408241,6.9692,141.38,141.29,54.00603413]
[1750711408745,7.0711,141.35,141.29,54.00603413]
[1750711409140,54.00603413,141.35,141.25,42.8]
[1750711409350,54.00603413,141.35,141.26,11.20603413]
[1750711410147,7.0726,141.32,141.29,7.0738]
[1750711410541,54.00603413,141.35,141.26,11.20603413]
[1750711410743,54.00603413,141.35,141.27,7.0747]
[1750711410942,11.20603413,141.33,141.27,7.0747]
[1750711411144,11.20603413,141.33,141.25,42.8]
[1750711411352,7.0734,141.31,141.28,7.0743]
[1750711411648,11.20603413,141.33,141.25,54.00603413]
[1750711411849,7.0739,141.3,141.27,7.0749]
[1750711412748,7.0741,141.29,141.26,7.0754]
[1750711412951,2.272,141.32,141.26,7.0754]
[1750711413346,7.0744,141.29,141.26,7.0754]
[1750711413547,7.0532,141.32,141.26,11.20603413]
[1750711413845,54.00603413,141.38,141.3,11.20603413]
[1750711414045,45.1441,141.37,141.3,18.27933413]
[1750711414439,7.0722,141.33,141.3,18.27933413]
[1750711414947,7.0722,141.33,141.3,7.0733]
[1750711415147,7.0726,141.32,141.3,7.0733]